[Event "Titled Tuesday Blitz February 22 Early 2022"]
[White "Shahaliyev, Ismayil"]
[Black "Guseinov, Gadir"]
[WhiteFideId "13406388"]
[BlackFideId "13401378"]
[WhiteElo "2105"]
[BlackElo "2581"]
[Result "1/2-1/2"]
[Round "08"]
[TimeControl "180+1"]
[Date "2022.02.22"]
[WhiteClock "0:00:03"]
[BlackClock "0:00:03"]

1. d4 {[%clk 0:03:00]}  Nf6 {[%clk 0:02:59]} 2. Nf3 {[%clk 0:03:00]}  g6 {[%clk 0:03:00]} 3. g3 {[%clk 0:03:01]}  Bg7 {[%clk 0:03:00]} 4. Bg2 {[%clk 0:03:01]}  O-O {[%clk 0:03:01]} 5. O-O {[%clk 0:03:02]}  d6 {[%clk 0:03:02]} 6. a4 {[%clk 0:03:02]}  Nc6 {[%clk 0:03:03]} 7. a5 {[%clk 0:03:02]}  a6 {[%clk 0:03:02]} 8. c4 {[%clk 0:03:01]}  e5 {[%clk 0:03:02]} 9. d5 {[%clk 0:03:01]}  Ne7 {[%clk 0:03:02]} 10. Nc3 {[%clk 0:03:00]}  Kh8 {[%clk 0:02:59]} 11. e4 {[%clk 0:02:56]}  Nfg8 {[%clk 0:02:59]} 12. b4 {[%clk 0:02:46]}  f5 {[%clk 0:02:59]} 13. Re1 {[%clk 0:02:31]}  Nf6 {[%clk 0:02:59]} 14. Ng5 {[%clk 0:02:27]}  f4 {[%clk 0:02:31]} 15. c5 {[%clk 0:02:09]}  h6 {[%clk 0:02:28]} 16. Ne6 {[%clk 0:02:09]}  Bxe6 {[%clk 0:02:29]} 17. dxe6 {[%clk 0:02:10]}  Nc6 {[%clk 0:02:30]} 18. Nd5 {[%clk 0:02:00]}  Re8 {[%clk 0:02:13]} 19. Bh3 {[%clk 0:01:50]}  Nd4 {[%clk 0:02:06]} 20. Nxf4 {[%clk 0:01:13]}  exf4 {[%clk 0:01:55]} 21. Qxd4 {[%clk 0:01:13]}  Nh7 {[%clk 0:01:19]} 22. e5 {[%clk 0:01:11]}  Ng5 {[%clk 0:01:15]} 23. Bg2 {[%clk 0:01:04]}  dxe5 {[%clk 0:01:14]} 24. Qxd8 {[%clk 0:00:59]}  Raxd8 {[%clk 0:01:15]} 25. Bb2 {[%clk 0:00:38]}  f3 {[%clk 0:01:08]} 26. Bf1 {[%clk 0:00:35]}  e4 {[%clk 0:00:56]} 27. Bxg7+ {[%clk 0:00:34]}  Kxg7 {[%clk 0:00:57]} 28. c6 {[%clk 0:00:31]}  bxc6 {[%clk 0:00:52]} 29. h4 {[%clk 0:00:31]}  Nxe6 {[%clk 0:00:50]} 30. Rxe4 {[%clk 0:00:32]}  Nd4 {[%clk 0:00:27]} 31. Rxe8 {[%clk 0:00:31]}  Rxe8 {[%clk 0:00:28]} 32. Bxa6 {[%clk 0:00:31]}  Nc2 {[%clk 0:00:24]} 33. Rb1 {[%clk 0:00:22]}  Rb8 {[%clk 0:00:24]} 34. Bd3 {[%clk 0:00:17]}  Nxb4 {[%clk 0:00:24]} 35. Be4 {[%clk 0:00:14]}  c5 {[%clk 0:00:21]} 36. a6 {[%clk 0:00:14]}  Nxa6 {[%clk 0:00:21]} 37. Ra1 {[%clk 0:00:13]}  Nb4 {[%clk 0:00:19]} 38. Ra7 {[%clk 0:00:12]}  Rf8 {[%clk 0:00:12]} 39. Rxc7+ {[%clk 0:00:11]}  Rf7 {[%clk 0:00:13]} 40. Rxc5 {[%clk 0:00:12]}  Rf6 {[%clk 0:00:09]} 41. Rc4 {[%clk 0:00:11]}  Na6 {[%clk 0:00:09]} 42. Rc3 {[%clk 0:00:06]}  Nb8 {[%clk 0:00:08]} 43. Bxf3 {[%clk 0:00:07]}  Nd7 {[%clk 0:00:08]} 44. Kg2 {[%clk 0:00:07]}  Ne5 {[%clk 0:00:08]} 45. Be4 {[%clk 0:00:08]}  h5 {[%clk 0:00:06]} 46. Rc7+ {[%clk 0:00:07]}  Kh6 {[%clk 0:00:06]} 47. Rc5 {[%clk 0:00:08]}  Ng4 {[%clk 0:00:06]} 48. f3 {[%clk 0:00:08]}  Ne3+ {[%clk 0:00:06]} 49. Kf2 {[%clk 0:00:09]}  Nf5 {[%clk 0:00:05]} 50. Rc8 {[%clk 0:00:08]}  Rb6 {[%clk 0:00:04]} 51. Rc2 {[%clk 0:00:05]}  Nd6 {[%clk 0:00:04]} 52. Bd3 {[%clk 0:00:05]}  Rb3 {[%clk 0:00:04]} 53. Rd2 {[%clk 0:00:05]}  Nf7 {[%clk 0:00:04]} 54. Be4 {[%clk 0:00:04]}  Ra3 {[%clk 0:00:03]} 55. Rd5 {[%clk 0:00:04]}  Ra2+ {[%clk 0:00:03]} 56. Ke3 {[%clk 0:00:05]}  Ra3+ {[%clk 0:00:02]} 57. Kf4 {[%clk 0:00:06]}  Ra6 {[%clk 0:00:03]} 58. Rd7 {[%clk 0:00:06]}  Rf6+ {[%clk 0:00:03]} 59. Ke3 {[%clk 0:00:06]}  Ne5 {[%clk 0:00:04]} 60. Rd5 {[%clk 0:00:06]}  Nc4+ {[%clk 0:00:04]} 61. Kd4 {[%clk 0:00:07]}  Nd2 {[%clk 0:00:04]} 62. Ke5 {[%clk 0:00:06]}  Nxe4 {[%clk 0:00:03]} 63. fxe4 {[%clk 0:00:06]}  Rf3 {[%clk 0:00:03]} 64. Rd7 {[%clk 0:00:05]}  Rxg3 {[%clk 0:00:04]} 65. Kf6 {[%clk 0:00:05]}  Rg4 {[%clk 0:00:02]} 66. e5 {[%clk 0:00:05]}  Rf4+ {[%clk 0:00:02]} 67. Ke7 {[%clk 0:00:05]}  Rxh4 {[%clk 0:00:03]} 68. e6 {[%clk 0:00:05]}  Re4 {[%clk 0:00:03]} 69. Kf7 {[%clk 0:00:04]}  Rf4+ {[%clk 0:00:01]} 70. Ke8 {[%clk 0:00:04]}  Re4 {[%clk 0:00:02]} 71. e7 {[%clk 0:00:04]}  h4 {[%clk 0:00:03]} 72. Kf7 {[%clk 0:00:04]}  Kg5 {[%clk 0:00:03]} 73. e8=Q {[%clk 0:00:03]}  Rxe8 {[%clk 0:00:03]} 74. Kxe8 {[%clk 0:00:04]}  Kf4 {[%clk 0:00:04]} 75. Kf7 {[%clk 0:00:02]}  g5 {[%clk 0:00:04]} 76. Kg6 {[%clk 0:00:03]}  h3 {[%clk 0:00:04]} 77. Rd1 {[%clk 0:00:02]}  h2 {[%clk 0:00:04]} 78. Kh5 {[%clk 0:00:02]}  Kg3 {[%clk 0:00:02]} 79. Kxg5 {[%clk 0:00:01]}  Kg2 {[%clk 0:00:03]} 80. Rd2+ {[%clk 0:00:01]}  Kg1 {[%clk 0:00:03]} 81. Kg4 {[%clk 0:00:02]}  h1=Q {[%clk 0:00:03]} 82. Rd1+ {[%clk 0:00:02]}  Kg2 {[%clk 0:00:03]} 83. Rxh1 {[%clk 0:00:03]}  Kxh1 {[%clk 0:00:03]} 1/2-1/2


[Site "https://www.chess.com"]

[Event "Titled Tuesday Blitz February 22 Early 2022"]
[White "Shevtchenko, Olesya"]
[Black "Chernomordik, Pavel"]
[WhiteFideId "24131890"]
[BlackFideId "2804530"]
[WhiteElo "2003"]
[BlackElo "2249"]
[Result "0-1"]
[Round "08"]
[TimeControl "180+1"]
[Date "2022.02.22"]
[WhiteClock "0:00:16"]
[BlackClock "0:00:35"]

1. c4 {[%clk 0:03:00]}  g6 {[%clk 0:03:00]} 2. d4 {[%clk 0:02:57]}  Bg7 {[%clk 0:03:01]} 3. Nc3 {[%clk 0:02:57]}  d6 {[%clk 0:03:01]} 4. e4 {[%clk 0:02:54]}  c6 {[%clk 0:03:01]} 5. Be3 {[%clk 0:02:53]}  a6 {[%clk 0:03:01]} 6. f3 {[%clk 0:02:48]}  b5 {[%clk 0:03:00]} 7. c5 {[%clk 0:02:48]}  dxc5 {[%clk 0:02:50]} 8. dxc5 {[%clk 0:02:43]}  Qa5 {[%clk 0:02:46]} 9. Qd2 {[%clk 0:02:31]}  Nd7 {[%clk 0:02:39]} 10. O-O-O {[%clk 0:02:29]}  b4 {[%clk 0:02:38]} 11. Nb1 {[%clk 0:02:28]}  Qxa2 {[%clk 0:02:32]} 12. Ne2 {[%clk 0:02:11]}  Ngf6 {[%clk 0:02:27]} 13. Qxb4 {[%clk 0:02:09]}  Rb8 {[%clk 0:02:27]} 14. Qa3 {[%clk 0:02:09]}  Qe6 {[%clk 0:02:17]} 15. Nf4 {[%clk 0:02:04]}  Qe5 {[%clk 0:02:17]} 16. Nd3 {[%clk 0:02:04]}  Qc7 {[%clk 0:02:16]} 17. Nd2 {[%clk 0:01:56]}  O-O {[%clk 0:02:14]} 18. Nc4 {[%clk 0:01:56]}  Ne8 {[%clk 0:02:03]} 19. Nb6 {[%clk 0:01:55]}  Ne5 {[%clk 0:01:55]} 20. Nxe5 {[%clk 0:01:51]}  Qxe5 {[%clk 0:01:49]} 21. g3 {[%clk 0:01:47]}  Qf6 {[%clk 0:01:32]} 22. Bd4 {[%clk 0:01:37]}  e5 {[%clk 0:01:20]} 23. Bf2 {[%clk 0:01:32]}  Nc7 {[%clk 0:01:20]} 24. Rd6 {[%clk 0:01:27]}  Qe7 {[%clk 0:01:18]} 25. h4 {[%clk 0:01:20]}  Nb5 {[%clk 0:01:14]} 26. Bxb5 {[%clk 0:01:17]}  cxb5 {[%clk 0:01:10]} 27. h5 {[%clk 0:01:15]}  Be6 {[%clk 0:01:06]} 28. Qxa6 {[%clk 0:01:06]}  Qc7 {[%clk 0:00:59]} 29. hxg6 {[%clk 0:00:59]}  hxg6 {[%clk 0:00:57]} 30. Qxb5 {[%clk 0:00:43]}  Qa7 {[%clk 0:00:56]} 31. Qa4 {[%clk 0:00:37]}  Qc7 {[%clk 0:00:54]} 32. Rhd1 {[%clk 0:00:34]}  Rfe8 {[%clk 0:00:49]} 33. b4 {[%clk 0:00:34]}  Bf8 {[%clk 0:00:48]} 34. Rc6 {[%clk 0:00:29]}  Qe7 {[%clk 0:00:48]} 35. Rcd6 {[%clk 0:00:25]}  Qg5+ {[%clk 0:00:46]} 36. Kb2 {[%clk 0:00:22]}  Bxd6 {[%clk 0:00:45]} 37. Rxd6 {[%clk 0:00:22]}  Red8 {[%clk 0:00:40]} 38. Qc6 {[%clk 0:00:20]}  Rxd6 {[%clk 0:00:38]} 39. Qxd6 {[%clk 0:00:21]}  Rd8 {[%clk 0:00:37]} 40. Qc7 {[%clk 0:00:18]}  Qd2+ {[%clk 0:00:36]} 41. Ka3 {[%clk 0:00:16]}  Qa2# {[%clk 0:00:35]} 0-1


[Site "https://www.chess.com"]

[Event "Titled Tuesday Blitz February 22 Early 2022"]
[White "Steenbekkers, Franck"]
[Black "Fathy, Elameir"]
[WhiteFideId "1004220"]
[BlackFideId "10600396"]
[WhiteElo "2145"]
[BlackElo "2311"]
[Result "0-1"]
[Round "08"]
[TimeControl "180+1"]
[Date "2022.02.22"]
[WhiteClock "0:00:17"]
[BlackClock "0:00:07"]

1. e4 {[%clk 0:02:53]}  c6 {[%clk 0:03:00]} 2. c4 {[%clk 0:02:50]}  d5 {[%clk 0:03:00]} 3. cxd5 {[%clk 0:02:49]}  cxd5 {[%clk 0:03:01]} 4. exd5 {[%clk 0:02:49]}  Nf6 {[%clk 0:03:01]} 5. Nc3 {[%clk 0:02:49]}  Nxd5 {[%clk 0:02:59]} 6. Nf3 {[%clk 0:02:49]}  g6 {[%clk 0:02:58]} 7. Bc4 {[%clk 0:02:07]}  Nb6 {[%clk 0:02:32]} 8. Bb3 {[%clk 0:02:02]}  Bg7 {[%clk 0:02:28]} 9. O-O {[%clk 0:01:53]}  O-O {[%clk 0:02:28]} 10. d4 {[%clk 0:01:45]}  Nc6 {[%clk 0:02:19]} 11. d5 {[%clk 0:01:40]}  Na5 {[%clk 0:02:18]} 12. Re1 {[%clk 0:01:36]}  h6 {[%clk 0:01:53]} 13. h3 {[%clk 0:01:29]}  Kh7 {[%clk 0:01:21]} 14. Be3 {[%clk 0:01:18]}  Nac4 {[%clk 0:01:20]} 15. Bd4 {[%clk 0:01:12]}  Nxb2 {[%clk 0:01:09]} 16. Qe2 {[%clk 0:01:06]}  Bxd4 {[%clk 0:00:50]} 17. Nxd4 {[%clk 0:01:05]}  e5 {[%clk 0:00:50]} 18. Qxe5 {[%clk 0:00:58]}  Nd3 {[%clk 0:00:47]} 19. Qe3 {[%clk 0:00:53]}  Nxe1 {[%clk 0:00:45]} 20. Rxe1 {[%clk 0:00:51]}  Bd7 {[%clk 0:00:42]} 21. Qf4 {[%clk 0:00:40]}  Qg5 {[%clk 0:00:26]} 22. Qxg5 {[%clk 0:00:37]}  hxg5 {[%clk 0:00:27]} 23. Re7 {[%clk 0:00:37]}  Rae8 {[%clk 0:00:26]} 24. d6 {[%clk 0:00:36]}  Kg7 {[%clk 0:00:16]} 25. Ncb5 {[%clk 0:00:30]}  Bxb5 {[%clk 0:00:09]} 26. Nxb5 {[%clk 0:00:30]}  Rxe7 {[%clk 0:00:09]} 27. dxe7 {[%clk 0:00:29]}  Re8 {[%clk 0:00:08]} 28. Nd6 {[%clk 0:00:18]}  Rxe7 {[%clk 0:00:07]} 29. Nxf7 {[%clk 0:00:18]}  Rxf7 {[%clk 0:00:07]} 30. Bxf7 {[%clk 0:00:17]}  Kxf7 {[%clk 0:00:07]} 0-1


[Site "https://www.chess.com"]

[Event "Titled Tuesday Blitz February 22 Early 2022"]
[White "Tasev, Dejan"]
[Black "Siva Mahadevan"]
[WhiteFideId "936618"]
[BlackFideId "25043153"]
[WhiteElo "2253"]
[BlackElo "2203"]
[Result "0-1"]
[Round "08"]
[TimeControl "180+1"]
[Date "2022.02.22"]
[WhiteClock "0:00:14"]
[BlackClock "0:00:12"]

1. e4 {[%clk 0:02:56]}  c5 {[%clk 0:02:58]} 2. Nf3 {[%clk 0:02:56]}  Nc6 {[%clk 0:02:58]} 3. Nc3 {[%clk 0:02:55]}  d6 {[%clk 0:02:59]} 4. d4 {[%clk 0:02:56]}  cxd4 {[%clk 0:02:59]} 5. Nxd4 {[%clk 0:02:57]}  Nf6 {[%clk 0:03:00]} 6. Bc4 {[%clk 0:02:56]}  Qb6 {[%clk 0:03:00]} 7. Nb3 {[%clk 0:02:56]}  e6 {[%clk 0:03:00]} 8. Be3 {[%clk 0:02:55]}  Qc7 {[%clk 0:02:59]} 9. Qe2 {[%clk 0:02:55]}  a6 {[%clk 0:02:59]} 10. a4 {[%clk 0:02:52]}  b6 {[%clk 0:02:56]} 11. O-O {[%clk 0:02:50]}  Be7 {[%clk 0:02:52]} 12. f4 {[%clk 0:02:50]}  O-O {[%clk 0:02:50]} 13. f5 {[%clk 0:02:48]}  Ne5 {[%clk 0:02:49]} 14. Bd3 {[%clk 0:02:47]}  exf5 {[%clk 0:02:21]} 15. Nd4 {[%clk 0:02:31]}  Neg4 {[%clk 0:01:43]} 16. Nxf5 {[%clk 0:02:21]}  Bxf5 {[%clk 0:01:42]} 17. Rxf5 {[%clk 0:02:20]}  d5 {[%clk 0:01:31]} 18. e5 {[%clk 0:01:56]}  Nxe3 {[%clk 0:01:30]} 19. exf6 {[%clk 0:01:55]}  Nxf5 {[%clk 0:01:30]} 20. fxe7 {[%clk 0:01:42]}  Nxe7 {[%clk 0:01:30]} 21. Bxa6 {[%clk 0:01:35]}  d4 {[%clk 0:01:19]} 22. Nd1 {[%clk 0:01:29]}  Nd5 {[%clk 0:01:15]} 23. Bc4 {[%clk 0:01:22]}  Nf4 {[%clk 0:01:13]} 24. Qf1 {[%clk 0:01:21]}  Rfe8 {[%clk 0:01:10]} 25. b3 {[%clk 0:01:19]}  Rad8 {[%clk 0:01:00]} 26. Nb2 {[%clk 0:01:16]}  Re3 {[%clk 0:00:48]} 27. Nd3 {[%clk 0:01:14]}  Nxd3 {[%clk 0:00:48]} 28. Bxd3 {[%clk 0:01:15]}  Rde8 {[%clk 0:00:48]} 29. Qf2 {[%clk 0:01:05]}  g6 {[%clk 0:00:43]} 30. Rf1 {[%clk 0:01:04]}  f5 {[%clk 0:00:44]} 31. Bc4+ {[%clk 0:00:48]}  Kg7 {[%clk 0:00:43]} 32. Bd3 {[%clk 0:00:43]}  Qe5 {[%clk 0:00:28]} 33. h3 {[%clk 0:00:42]}  Re6 {[%clk 0:00:21]} 34. b4 {[%clk 0:00:42]}  Qd6 {[%clk 0:00:19]} 35. a5 {[%clk 0:00:42]}  Qxb4 {[%clk 0:00:17]} 36. a6 {[%clk 0:00:42]}  Re7 {[%clk 0:00:18]} 37. Qf4 {[%clk 0:00:35]}  Re1 {[%clk 0:00:18]} 38. Qb8 {[%clk 0:00:29]}  Rxf1+ {[%clk 0:00:17]} 39. Bxf1 {[%clk 0:00:29]}  Qa5 {[%clk 0:00:14]} 40. Qd8 {[%clk 0:00:27]}  Re1 {[%clk 0:00:10]} 41. Qxd4+ {[%clk 0:00:27]}  Kh6 {[%clk 0:00:08]} 42. Qh4+ {[%clk 0:00:26]}  Kg7 {[%clk 0:00:08]} 43. Qd4+ {[%clk 0:00:24]}  Qe5 {[%clk 0:00:08]} 44. Qd7+ {[%clk 0:00:23]}  Kh6 {[%clk 0:00:08]} 45. Qd3 {[%clk 0:00:19]}  Qe3+ {[%clk 0:00:08]} 46. Qxe3+ {[%clk 0:00:19]}  Rxe3 {[%clk 0:00:09]} 47. Kf2 {[%clk 0:00:18]}  Ra3 {[%clk 0:00:09]} 48. Be2 {[%clk 0:00:17]}  Kg5 {[%clk 0:00:10]} 49. Bb5 {[%clk 0:00:16]}  Kf4 {[%clk 0:00:10]} 50. Ke2 {[%clk 0:00:17]}  Ke4 {[%clk 0:00:09]} 51. Bc6+ {[%clk 0:00:16]}  Kd4 {[%clk 0:00:09]} 52. Bb7 {[%clk 0:00:17]}  g5 {[%clk 0:00:09]} 53. Kd2 {[%clk 0:00:17]}  h5 {[%clk 0:00:09]} 54. g3 {[%clk 0:00:15]}  f4 {[%clk 0:00:09]} 55. gxf4 {[%clk 0:00:16]}  gxf4 {[%clk 0:00:10]} 56. Ke2 {[%clk 0:00:16]}  Ra2 {[%clk 0:00:10]} 57. Kf3 {[%clk 0:00:16]}  Ke5 {[%clk 0:00:10]} 58. c4 {[%clk 0:00:16]}  Ra3+ {[%clk 0:00:11]} 59. Kf2 {[%clk 0:00:15]}  Kd4 {[%clk 0:00:11]} 60. h4 {[%clk 0:00:14]}  Kxc4 {[%clk 0:00:11]} 61. Ke2 {[%clk 0:00:15]}  b5 {[%clk 0:00:11]} 62. Kd2 {[%clk 0:00:14]}  b4 {[%clk 0:00:12]} 63. Kc2 {[%clk 0:00:14]}  Ra2+ {[%clk 0:00:12]} 64. Kb1 {[%clk 0:00:15]}  b3 {[%clk 0:00:12]} 65. Bc8 {[%clk 0:00:14]}  Kc3 {[%clk 0:00:12]} 0-1


[Site "https://www.chess.com"]

[Event "Titled Tuesday Blitz February 22 Early 2022"]
[White "Tillis., Bryan"]
[Black "Yang, Kaiqi"]
[WhiteFideId "2059053"]
[BlackFideId "8604398"]
[WhiteElo "2329"]
[BlackElo "2373"]
[Result "1-0"]
[Round "08"]
[TimeControl "180+1"]
[Date "2022.02.22"]
[WhiteClock "0:00:11"]
[BlackClock "0:00:02"]

1. c4 {[%clk 0:03:00]}  g6 {[%clk 0:02:58]} 2. Nf3 {[%clk 0:03:00]}  Bg7 {[%clk 0:02:58]} 3. d4 {[%clk 0:03:00]}  Nf6 {[%clk 0:02:56]} 4. Nc3 {[%clk 0:02:58]}  O-O {[%clk 0:02:56]} 5. Bf4 {[%clk 0:02:56]}  d6 {[%clk 0:02:55]} 6. e3 {[%clk 0:02:56]}  Nh5 {[%clk 0:02:54]} 7. Bg5 {[%clk 0:02:55]}  h6 {[%clk 0:02:54]} 8. Bh4 {[%clk 0:02:56]}  g5 {[%clk 0:02:54]} 9. Nd2 {[%clk 0:02:56]}  Nf6 {[%clk 0:02:37]} 10. Bg3 {[%clk 0:02:56]}  c5 {[%clk 0:02:37]} 11. d5 {[%clk 0:02:54]}  e6 {[%clk 0:02:18]} 12. Be2 {[%clk 0:02:51]}  exd5 {[%clk 0:02:18]} 13. cxd5 {[%clk 0:02:51]}  Re8 {[%clk 0:02:12]} 14. O-O {[%clk 0:02:39]}  Na6 {[%clk 0:02:12]} 15. Nc4 {[%clk 0:02:35]}  Bf8 {[%clk 0:02:10]} 16. Qd2 {[%clk 0:02:21]}  Nc7 {[%clk 0:02:08]} 17. a4 {[%clk 0:02:20]}  b6 {[%clk 0:02:06]} 18. Nb5 {[%clk 0:02:17]}  Nxb5 {[%clk 0:01:57]} 19. axb5 {[%clk 0:02:17]}  Ne4 {[%clk 0:01:54]} 20. Qd1 {[%clk 0:02:09]}  Bd7 {[%clk 0:01:51]} 21. Nd2 {[%clk 0:02:00]}  Nxg3 {[%clk 0:01:50]} 22. hxg3 {[%clk 0:02:01]}  Bg7 {[%clk 0:01:41]} 23. Qc2 {[%clk 0:01:54]}  Qf6 {[%clk 0:01:21]} 24. Ra2 {[%clk 0:01:48]}  Bf5 {[%clk 0:01:20]} 25. Bd3 {[%clk 0:01:41]}  Bd7 {[%clk 0:00:59]} 26. Rfa1 {[%clk 0:01:30]}  Rad8 {[%clk 0:00:40]} 27. Rxa7 {[%clk 0:01:00]}  Qxb2 {[%clk 0:00:39]} 28. Qxb2 {[%clk 0:00:56]}  Bxb2 {[%clk 0:00:40]} 29. R1a2 {[%clk 0:00:55]}  Bc3 {[%clk 0:00:28]} 30. Ne4 {[%clk 0:00:48]}  Rxe4 {[%clk 0:00:26]} 31. Bxe4 {[%clk 0:00:44]}  Bxb5 {[%clk 0:00:26]} 32. Rb7 {[%clk 0:00:37]}  Bc4 {[%clk 0:00:16]} 33. Rc2 {[%clk 0:00:32]}  b5 {[%clk 0:00:03]} 34. Rxc3 {[%clk 0:00:30]}  Ra8 {[%clk 0:00:04]} 35. Rc1 {[%clk 0:00:20]}  Kg7 {[%clk 0:00:04]} 36. Rb6 {[%clk 0:00:20]}  Kf6 {[%clk 0:00:03]} 37. Bf3 {[%clk 0:00:19]}  Ke5 {[%clk 0:00:03]} 38. g4 {[%clk 0:00:18]}  Ra2 {[%clk 0:00:02]} 39. Rb7 {[%clk 0:00:13]}  Kf6 {[%clk 0:00:02]} 40. Rb8 {[%clk 0:00:11]} 1-0


[Site "https://www.chess.com"]

[Event "Titled Tuesday Blitz February 22 Early 2022"]
[White "Toncheva, Nadya"]
[Black "Hua, Lefong"]
[WhiteFideId "2924056"]
[BlackFideId "2602253"]
[WhiteElo "1920"]
[BlackElo "2565"]
[Result "0-1"]
[Round "08"]
[TimeControl "180+1"]
[Date "2022.02.22"]
[WhiteClock "0:00:05"]
[BlackClock "0:01:49"]

1. d4 {[%clk 0:03:00]}  Nf6 {[%clk 0:03:00]} 2. c4 {[%clk 0:03:01]}  g6 {[%clk 0:02:59]} 3. Nc3 {[%clk 0:03:01]}  Bg7 {[%clk 0:03:00]} 4. e4 {[%clk 0:03:02]}  d6 {[%clk 0:03:00]} 5. Be2 {[%clk 0:03:02]}  O-O {[%clk 0:03:01]} 6. Bg5 {[%clk 0:03:02]}  c5 {[%clk 0:03:00]} 7. d5 {[%clk 0:03:02]}  h6 {[%clk 0:03:00]} 8. Be3 {[%clk 0:03:02]}  e6 {[%clk 0:02:59]} 9. Qd2 {[%clk 0:03:02]}  Kh7 {[%clk 0:02:59]} 10. h4 {[%clk 0:03:03]}  exd5 {[%clk 0:02:59]} 11. exd5 {[%clk 0:03:03]}  Re8 {[%clk 0:02:54]} 12. Kf1 {[%clk 0:03:03]}  Nbd7 {[%clk 0:02:51]} 13. Nf3 {[%clk 0:03:01]}  Ne5 {[%clk 0:02:51]} 14. Nxe5 {[%clk 0:02:40]}  Rxe5 {[%clk 0:02:52]} 15. Re1 {[%clk 0:02:38]}  Bf5 {[%clk 0:02:39]} 16. Bf4 {[%clk 0:02:27]}  Ne4 {[%clk 0:02:32]} 17. Nxe4 {[%clk 0:02:12]}  Rxe4 {[%clk 0:02:33]} 18. g3 {[%clk 0:01:55]}  Qd7 {[%clk 0:02:19]} 19. Kg2 {[%clk 0:01:35]}  Rae8 {[%clk 0:02:15]} 20. b3 {[%clk 0:01:24]}  Qe7 {[%clk 0:02:07]} 21. Be3 {[%clk 0:01:15]}  Bd4 {[%clk 0:02:05]} 22. Bf3 {[%clk 0:00:31]}  Bxe3 {[%clk 0:01:58]} 23. fxe3 {[%clk 0:00:30]}  Rxe3 {[%clk 0:01:57]} 24. Rxe3 {[%clk 0:00:25]}  Qxe3 {[%clk 0:01:58]} 25. Qxe3 {[%clk 0:00:15]}  Rxe3 {[%clk 0:01:59]} 26. Kf2 {[%clk 0:00:14]}  Rc3 {[%clk 0:01:53]} 27. Re1 {[%clk 0:00:13]}  Rc2+ {[%clk 0:01:52]} 28. Re2 {[%clk 0:00:13]}  Rxe2+ {[%clk 0:01:53]} 29. Bxe2 {[%clk 0:00:14]}  Bb1 {[%clk 0:01:52]} 30. a3 {[%clk 0:00:13]}  a5 {[%clk 0:01:51]} 31. Bd1 {[%clk 0:00:12]}  Kg7 {[%clk 0:01:51]} 32. Ke3 {[%clk 0:00:12]}  Kf6 {[%clk 0:01:51]} 33. Kd2 {[%clk 0:00:12]}  Ke5 {[%clk 0:01:50]} 34. Ke3 {[%clk 0:00:12]}  f5 {[%clk 0:01:50]} 35. a4 {[%clk 0:00:11]}  g5 {[%clk 0:01:49]} 36. hxg5 {[%clk 0:00:11]}  hxg5 {[%clk 0:01:50]} 37. Ke2 {[%clk 0:00:04]}  f4 {[%clk 0:01:48]} 38. gxf4+ {[%clk 0:00:04]}  gxf4 {[%clk 0:01:49]} 39. Kf3 {[%clk 0:00:05]}  Be4+ {[%clk 0:01:49]} 40. Kf2 {[%clk 0:00:05]}  Kd4 {[%clk 0:01:49]} 41. Ke2 {[%clk 0:00:05]} 0-1


[Site "https://www.chess.com"]

[Event "Titled Tuesday Blitz February 22 Early 2022"]
[White "Tregubov, Pavel V."]
[Black "Kovalenko, Igor"]
[WhiteFideId "4115341"]
[BlackFideId "14117908"]
[WhiteElo "2341"]
[BlackElo "2560"]
[Result "0-1"]
[Round "08"]
[TimeControl "180+1"]
[Date "2022.02.22"]
[WhiteClock "0:00:05"]
[BlackClock "0:00:21"]

1. e4 {[%clk 0:03:00]}  c5 {[%clk 0:02:41]} 2. Nf3 {[%clk 0:03:00]}  e6 {[%clk 0:02:41]} 3. c3 {[%clk 0:02:59]}  d5 {[%clk 0:02:40]} 4. exd5 {[%clk 0:02:59]}  Qxd5 {[%clk 0:02:40]} 5. d4 {[%clk 0:03:00]}  Nf6 {[%clk 0:02:40]} 6. Be2 {[%clk 0:03:00]}  Be7 {[%clk 0:02:39]} 7. O-O {[%clk 0:03:01]}  O-O {[%clk 0:02:38]} 8. c4 {[%clk 0:03:01]}  Qd7 {[%clk 0:02:31]} 9. dxc5 {[%clk 0:02:58]}  Bxc5 {[%clk 0:02:32]} 10. Nc3 {[%clk 0:02:58]}  b6 {[%clk 0:02:28]} 11. a3 {[%clk 0:02:56]}  a5 {[%clk 0:02:22]} 12. Na4 {[%clk 0:02:50]}  Ba6 {[%clk 0:02:13]} 13. Nxc5 {[%clk 0:02:47]}  bxc5 {[%clk 0:02:13]} 14. Be3 {[%clk 0:02:48]}  Qc7 {[%clk 0:02:11]} 15. h3 {[%clk 0:02:47]}  Nbd7 {[%clk 0:02:10]} 16. Qc2 {[%clk 0:02:39]}  Rfb8 {[%clk 0:02:05]} 17. Rfd1 {[%clk 0:02:38]}  Rb6 {[%clk 0:02:02]} 18. Bd2 {[%clk 0:02:16]}  Bb7 {[%clk 0:02:01]} 19. Bc3 {[%clk 0:02:14]}  Be4 {[%clk 0:01:57]} 20. Qc1 {[%clk 0:02:10]}  h6 {[%clk 0:01:51]} 21. Qe3 {[%clk 0:02:05]}  Qb7 {[%clk 0:01:45]} 22. Rd2 {[%clk 0:01:39]}  Bc6 {[%clk 0:01:39]} 23. Rad1 {[%clk 0:01:37]}  a4 {[%clk 0:01:37]} 24. Bxf6 {[%clk 0:01:33]}  Nxf6 {[%clk 0:01:36]} 25. Qxc5 {[%clk 0:01:34]}  Be8 {[%clk 0:00:45]} 26. Qe5 {[%clk 0:01:15]}  Rc8 {[%clk 0:00:44]} 27. Nd4 {[%clk 0:01:04]}  Rxb2 {[%clk 0:00:37]} 28. Nb5 {[%clk 0:00:49]}  Rxd2 {[%clk 0:00:36]} 29. Rxd2 {[%clk 0:00:50]}  Qe4 {[%clk 0:00:34]} 30. Qxe4 {[%clk 0:00:43]}  Nxe4 {[%clk 0:00:35]} 31. Rd4 {[%clk 0:00:43]}  Nc5 {[%clk 0:00:35]} 32. Bd1 {[%clk 0:00:35]}  Kf8 {[%clk 0:00:34]} 33. f4 {[%clk 0:00:35]}  Ke7 {[%clk 0:00:33]} 34. Kf2 {[%clk 0:00:34]}  Rb8 {[%clk 0:00:33]} 35. Be2 {[%clk 0:00:31]}  Bc6 {[%clk 0:00:32]} 36. g3 {[%clk 0:00:30]}  g5 {[%clk 0:00:31]} 37. Ke3 {[%clk 0:00:28]}  gxf4+ {[%clk 0:00:32]} 38. Rxf4 {[%clk 0:00:27]}  Rg8 {[%clk 0:00:31]} 39. g4 {[%clk 0:00:27]}  e5 {[%clk 0:00:30]} 40. Rf5 {[%clk 0:00:26]}  f6 {[%clk 0:00:30]} 41. Rh5 {[%clk 0:00:26]}  Rh8 {[%clk 0:00:29]} 42. Nc7 {[%clk 0:00:21]}  Ne6 {[%clk 0:00:28]} 43. Nxe6 {[%clk 0:00:16]}  Kxe6 {[%clk 0:00:29]} 44. Bd3 {[%clk 0:00:15]}  Be8 {[%clk 0:00:25]} 45. Rf5 {[%clk 0:00:15]}  Bg6 {[%clk 0:00:22]} 46. Rf1 {[%clk 0:00:13]}  Bxd3 {[%clk 0:00:21]} 47. Kxd3 {[%clk 0:00:14]}  h5 {[%clk 0:00:22]} 48. gxh5 {[%clk 0:00:08]}  Rxh5 {[%clk 0:00:21]} 49. Rf3 {[%clk 0:00:08]}  Rh4 {[%clk 0:00:21]} 50. Kc3 {[%clk 0:00:08]}  f5 {[%clk 0:00:20]} 51. Kb4 {[%clk 0:00:07]}  e4 {[%clk 0:00:21]} 52. Rc3 {[%clk 0:00:07]}  f4 {[%clk 0:00:21]} 53. c5 {[%clk 0:00:07]}  f3 {[%clk 0:00:21]} 54. Kb5 {[%clk 0:00:05]}  f2 {[%clk 0:00:21]} 55. Rc1 {[%clk 0:00:06]}  e3 {[%clk 0:00:21]} 56. c6 {[%clk 0:00:06]}  e2 {[%clk 0:00:21]} 57. c7 {[%clk 0:00:07]}  Rh8 {[%clk 0:00:21]} 58. Kc6 {[%clk 0:00:05]}  e1=Q {[%clk 0:00:21]} 0-1


[Site "https://www.chess.com"]